bitfinex-derivatives/quotes_ETHF0:USTF0_20241102
["timestamp","ask_amount","ask_price","bid_price","bid_amount"]
[1730567850438,1.44534148,2492.8,2492.7,0.40634579]
[1730567850735,1.44534148,2492.8,2492.7,0.28089]
[1730567850935,1.44534148,2492.8,2492.7,0.40634707]
[1730567851133,1.44534148,2492.8,2492.7,0.28089]
[1730567851335,1.44534148,2492.8,2492.7,0.40634993]
[1730567852139,2.66492523,2492.8,2492.7,0.40634993]
[1730567853237,2.66492523,2492.8,2492.7,0.28089]
[1730567853939,2.66492523,2492.8,2492.7,0.40635093]
[1730567854338,2.66492523,2492.8,2492.7,0.95283028]
[1730567854536,2.66492523,2492.8,2492.7,0.95281129]
[1730567855442,2.66492523,2492.8,2492.7,0.40634418]
[1730567855738,2.66492523,2492.8,2492.7,0.40634611]
[1730567855940,2.66492523,2492.8,2492.7,0.28089]
[1730567858729,2.94579523,2492.8,2492.7,0.28089]
[1730567859136,3.56649523,2492.8,2492.7,0.28089]
[1730567859936,3.28562523,2492.8,2492.7,0.28089]
[1730567860940,1.84028375,2492.8,2492.7,0.28089]
[1730567863339,2.12115375,2492.8,2492.7,0.28089]
[1730567863853,1.84028375,2492.8,2492.7,0.28089]
[1730567871456,1.21958375,2492.8,2492.7,0.28089]
[1730567871859,1.21958375,2492.8,2492.7,0.95326989]
[1730567872364,0.6497,2493.0,2492.9,0.28086]
[1730567872756,1.86928375,2493.0,2492.9,0.28086]
[1730567872953,1.86928375,2493.0,2492.9,0.89516]
[1730567876368,1.86928375,2493.0,2492.9,1.02061135]
[1730567877469,1.86928375,2493.0,2492.9,1.02061165]
[1730567878369,1.86928375,2493.0,2492.9,1.02061205]
[1730567878563,1.86928375,2493.0,2492.9,0.89516]
[1730567880673,1.86928375,2493.0,2492.9,0.28086]
[1730567884573,1.86928375,2493.0,2492.5,4.8728446]
[1730567884770,0.28089,2492.7,2492.6,0.90289]
[1730567885170,1.50047375,2492.7,2492.6,0.90289]
[1730567885672,1.50047375,2492.7,2492.3,2.3907746]
[1730567885673,0.28093,2492.4,2492.3,0.28092]
[1730567885874,1.50051375,2492.4,2492.3,0.28092]
[1730567886272,1.21958375,2492.4,2492.3,0.28092]
[1730567886476,2.66492523,2492.4,2492.3,0.28092]
[1730567886777,2.66492523,2492.4,2492.3,0.40640848]
[1730567886973,3.30392523,2492.4,2492.3,0.40640848]
[1730567887178,3.30392523,2492.4,2492.3,0.28092]
[1730567893784,3.58484523,2492.4,2492.3,0.28093]
[1730567893974,3.30392523,2492.4,2492.3,0.28093]
[1730567894690,0.28095,2492.2,2492.1,0.28095]
[1730567894883,1.72629148,2492.2,2492.1,0.28095]
[1730567895086,2.94587523,2492.2,2492.1,0.28095]
[1730567895283,3.60147523,2492.2,2492.1,0.28095]
[1730567895882,3.32052523,2492.2,2492.1,0.28095]
[1730567896079,3.60146523,2492.2,2492.1,0.28095]
[1730567897391,3.32052523,2492.2,2492.1,0.28095]
[1730567899089,3.60146523,2492.2,2492.1,0.28095]
[1730567899289,3.32052523,2492.2,2492.1,0.28095]
[1730567901683,1.21958375,2492.2,2492.1,0.28095]
[1730567903187,1.61978115,2492.7,2492.1,5.45814148]
[1730567903484,1.61978115,2492.7,2492.6,0.2809]
[1730567903485,1.44534148,2492.7,2492.6,0.2809]
[1730567903689,2.66492523,2492.7,2492.6,0.2809]
[1730567904282,2.66492523,2492.7,2492.6,1.6015]
[1730567905991,1.21958375,2492.7,2492.6,1.6015]
[1730567908898,1.21958375,2492.7,2492.6,1.72695333]
[1730567909094,1.44534148,2493.0,2492.9,0.28086]
[1730567909594,2.66492523,2493.0,2492.9,0.28086]
[1730567920506,3.31232523,2493.0,2492.9,0.28086]
[1730567921504,2.66492523,2493.0,2492.9,0.28086]
[1730567925204,2.94577523,2493.0,2492.9,0.28086]
[1730567926408,2.94577523,2493.0,2492.8,0.28087]
[1730567926409,0.28087,2492.9,2492.8,0.28087]
[1730567926602,3.01241148,2492.9,2492.8,0.28087]
[1730567926809,4.23199523,2492.9,2492.8,0.28087]
[1730567927207,0.28088,2492.8,2492.7,0.28088]
[1730567927411,2.07124148,2492.8,2492.7,0.28088]
[1730567927613,3.29082523,2492.8,2492.7,0.28088]
[1730567932213,3.57169523,2492.8,2492.7,0.28088]
[1730567932810,2.12635375,2492.8,2492.7,0.28088]
[1730567938710,2.12635375,2492.8,2492.4,0.7023]
[1730567938711,3.29082523,2492.8,2492.3,0.70232]
[1730567938912,1.21958375,2492.4,2492.3,0.28093]
[1730567946516,1.88158375,2492.4,2492.3,0.28093]
[1730567947917,1.21958375,2492.4,2492.3,0.28093]
[1730567955322,1.21958375,2492.4,2492.3,0.40639905]
[1730567955524,1.21958375,2492.4,2492.3,0.28093]
[1730567958433,1.21958375,2492.4,2492.3,0.40640566]
[1730567959427,1.21958375,2492.4,2492.3,0.28093]
[1730567959631,1.21958375,2492.4,2492.3,0.40641202]
[1730567960030,1.21958375,2492.4,2492.3,0.28093]
[1730567961634,1.21958375,2492.4,2492.3,0.40640926]
[1730567963032,1.21958375,2492.4,2492.3,0.95311036]
[1730567964228,1.21958375,2492.4,2492.3,0.28093]
[1730567964432,1.21958375,2492.4,2492.3,0.95317843]
[1730567965029,0.6593,2492.9,2492.8,0.28087]
[1730567965232,1.21958375,2492.9,2492.8,0.28087]
[1730567966022,1.21958375,2492.9,2492.8,0.95307991]
[1730567966429,1.21958375,2492.9,2492.8,2.90127991]
[1730567967131,1.21958375,2492.9,2492.8,3.95318511]
[1730567967337,1.21958375,2492.9,2492.8,4.40459637]
[1730567967836,1.21958375,2492.9,2492.8,5.45566238]
[1730567968040,1.21958375,2492.9,2492.8,4.78351754]
[1730567968234,1.21958375,2492.9,2492.8,4.40459563]
[1730567968446,1.21958375,2492.9,2492.8,5.33014917]
[1730567968737,1.21958375,2492.9,2492.8,4.27887051]
[1730567968934,1.21958375,2492.9,2492.8,5.3298483]
[1730567969238,1.21958375,2492.9,2492.8,4.78316648]
[1730567970132,1.21958375,2492.9,2492.8,3.73216507]
[1730567970336,1.21958375,2492.9,2492.8,4.78297551]
[1730567971227,1.21958375,2492.9,2492.8,4.78267672]
[1730567971435,1.21958375,2492.9,2492.8,3.27988044]
[1730567972135,1.21958375,2492.9,2492.8,2.22907]
[1730567972330,1.21958375,2492.9,2492.8,4.78239628]
[1730567973136,1.21958375,2492.9,2492.8,4.50152628]
[1730567973434,1.21958375,2492.9,2492.8,3.27978497]
[1730567973627,1.21958375,2492.9,2492.8,4.78200008]
[1730567974331,1.21958375,2492.9,2492.8,2.22907]
[1730567976337,1.21958375,2492.9,2492.8,2.77521752]
[1730567976643,1.21958375,2492.9,2492.8,2.90065965]
[1730567977740,1.21958375,2492.9,2492.8,2.90059655]
[1730567978237,1.21958375,2492.9,2492.8,5.56231213]
[1730567978840,1.21958375,2492.9,2492.8,2.35451213]
[1730567979044,1.21958375,2492.9,2492.8,5.43687]
[1730567979234,1.21958375,2492.9,2492.8,5.56231289]
[1730567979639,1.21958375,2492.9,2492.8,2.35451289]
[1730567979833,1.21958375,2492.9,2492.8,5.56231289]
[1730567980232,1.44534148,2493.0,2492.8,5.28144289]
[1730567980438,1.21958375,2492.9,2492.8,5.43687]
[1730567980637,1.44534148,2493.0,2492.9,0.28086]
[1730567981030,2.66492523,2493.0,2492.9,0.28086]
[1730567986647,1.21958375,2493.0,2492.9,0.28086]
[1730568000465,1.21958375,2493.0,2492.9,0.40629879]
[1730568000663,1.21958375,2493.0,2492.9,0.28086]
[1730568000861,1.21958375,2493.0,2492.9,0.40629858]
[1730568001061,1.21958375,2493.0,2492.9,0.40629843]
[1730568001259,2.73194148,2493.3,2493.2,0.28083]
[1730568001661,3.95152523,2493.3,2493.2,0.28083]
[1730568004169,3.95152523,2493.3,2493.0,0.70213]
[1730568004170,0.28084,2493.1,2493.0,0.28084]
[1730568004469,1.50042375,2493.1,2493.0,0.28084]
[1730568004657,1.21958375,2493.1,2493.0,0.28084]
[1730568004863,1.88488375,2493.1,2493.0,0.28084]
[1730568006669,2.16572375,2493.1,2493.0,0.28084]
[1730568006869,1.88488375,2493.1,2493.0,0.28084]
[1730568007972,2.16572375,2493.1,2493.0,0.28084]
[1730568009272,1.88488375,2493.1,2493.0,0.28084]
[1730568009772,2.16572375,2493.1,2493.0,0.28084]
[1730568009967,2.16572375,2493.1,2492.9,1.05071497]
[1730568010173,2.94577523,2493.0,2492.9,1.05071497]
[1730568010563,2.94577523,2493.0,2492.9,1.33157497]
[1730568010770,2.66492523,2493.0,2492.8,1.33158497]
[1730568011068,3.01490148,2492.9,2492.8,1.33158497]
[1730568011273,4.23448523,2492.9,2492.8,1.33158497]
[1730568011963,4.23448523,2492.9,2492.8,1.05071497]
[1730568012164,7.44228523,2492.9,2492.8,1.05071497]
[1730568012362,8.88762671,2492.9,2492.8,0.03781497]
[1730568012571,0.28087,2492.8,2492.7,1.57785781]
[1730568012877,2.11345375,2492.8,2492.7,1.85874781]
[1730568014173,2.11345375,2492.8,2492.7,1.57785781]
[1730568014373,2.11345375,2492.8,2492.7,1.85874781]
[1730568016372,2.11345375,2492.8,2492.7,0.28089]
[1730568018477,0.28089,2492.7,2492.6,0.28089]
[1730568018778,1.72623148,2492.7,2492.6,0.28089]
[1730568018984,2.94581523,2492.7,2492.6,0.28089]
[1730568020380,2.66492523,2492.7,2492.6,0.28089]
[1730568021078,2.94581523,2492.7,2492.6,0.28089]
[1730568021576,2.66492523,2492.7,2492.6,0.28089]
[1730568021782,2.94581523,2492.7,2492.6,0.28089]
[1730568023180,2.66492523,2492.7,2492.6,0.28089]
[1730568023381,1.21958375,2492.7,2492.6,0.28089]
[1730568027594,1.21958375,2492.5,2492.3,0.24254542]
[1730568027795,1.21958375,2492.5,2492.1,5.9000379]
[1730568028094,1.21958375,2492.5,2492.4,0.28092]
[1730568028790,1.21958375,2492.5,2492.1,1.703949]
[1730568028990,1.21958375,2492.5,2492.4,0.28092]
[1730568029797,1.21958375,2492.5,2492.4,0.85804791]
[1730568030101,0.31625308,2492.5,2492.4,3.74368754]
[1730568030894,0.31625308,2492.5,2492.4,0.73257895]
[1730568031110,0.31625308,2492.5,2492.4,5.62983872]
[1730568033791,0.29495308,2492.5,2492.4,5.62983872]
[1730568034196,0.19455308,2492.5,2492.4,2.16712]
[1730568034502,0.19455308,2492.5,2492.4,7.09038142]
[1730568034705,0.19455308,2492.5,2492.4,5.6299126]
[1730568036401,3.2078,2492.7,2492.6,0.2809]
[1730568036697,3.2078,2492.7,2492.6,3.7436926]
[1730568036901,3.40235308,2492.7,2492.6,3.4927656]
[1730568038204,3.40235308,2492.7,2492.6,3.36730277]
[1730568038396,3.40235308,2492.7,2492.6,3.49276668]
[1730568041108,3.2078,2492.7,2492.6,3.49276668]
[1730568041410,0.19455308,2492.7,2492.6,3.49276668]
[1730568041614,3.40235308,2492.7,2492.6,3.49276668]
[1730568041912,3.40235308,2492.7,2492.6,0.60709845]
[1730568042210,3.40235308,2492.7,2492.6,1.91187801]
[1730568042411,3.40235308,2492.7,2492.6,3.49267207]
[1730568042606,3.40235308,2492.7,2492.6,3.7435937]
[1730568042810,3.40235308,2492.7,2492.6,3.49267207]
[1730568043113,3.40235308,2492.7,2492.6,3.74359468]
[1730568043810,3.40235308,2492.7,2492.6,3.74359279]
[1730568044213,3.40235308,2492.7,2492.6,0.2809]
[1730568044409,3.40235308,2492.7,2492.6,3.74360292]
[1730568045509,3.40235308,2492.7,2492.6,3.61814384]
[1730568045712,3.40235308,2492.7,2492.6,3.74360413]
[1730568045919,0.19455308,2492.7,2492.6,3.74360413]
[1730568046322,3.40235308,2492.7,2492.6,3.74360413]
[1730568047717,2.4990432,2492.7,2492.6,3.74360413]
[1730568047921,2.08974148,2492.8,2492.6,3.46270413]
[1730568048120,2.08974148,2492.8,2492.7,3.74359087]
[1730568048319,5.29754148,2492.8,2492.7,3.74359087]
[1730568049220,5.29754148,2492.8,2492.7,3.74360593]
[1730568050127,5.29754148,2492.8,2492.7,3.16648662]
[1730568050423,5.29754148,2492.8,2492.7,3.74359857]
[1730568051015,5.29754148,2492.8,2492.7,4.36079857]
[1730568052619,5.29754148,2492.8,2492.7,3.7836815]
[1730568052819,5.29754148,2492.8,2492.7,4.16006313]
[1730568053018,5.29754148,2492.8,2492.7,1.4752085]
[1730568053225,5.29754148,2492.8,2492.7,3.35713395]
[1730568053522,5.29754148,2492.8,2492.7,4.36082752]
[1730568055823,3.2078,2492.8,2492.7,4.36082752]
[1730568056321,3.2078,2492.8,2492.7,4.36072447]
[1730568058437,3.2078,2492.8,2492.7,5.88242026]
[1730568058622,3.2078,2492.8,2492.7,5.88232251]
[1730568058929,2.8929,2492.8,2492.7,5.8237281]
[1730568059727,2.8929,2492.8,2492.7,2.36119138]
[1730568060027,2.8929,2492.8,2492.7,5.57278906]
[1730568060219,3.2078,2492.8,2492.7,5.5428057]
[1730568060423,3.2078,2492.8,2492.7,5.8236957]
[1730568060629,3.1078,2492.8,2492.7,5.55385482]
[1730568060819,4.45314148,2492.8,2492.7,5.18756335]
[1730568061020,4.45314148,2492.8,2492.7,3.49248768]
[1730568061021,3.28867,2492.8,2492.7,3.49248768]
[1730568061226,3.28867,2492.8,2492.7,3.01087283]
[1730568061425,5.22227,2492.8,2492.7,2.03723248]
[1730568061629,4.9414,2492.8,2492.7,2.03723248]
[1730568061825,5.22227,2492.8,2492.7,2.03723248]
[1730568062022,5.22227,2492.8,2492.7,1.75634248]
[1730568062221,0.2809,2492.6,2492.5,0.2809]
[1730568062420,0.2809,2492.6,2492.5,1.53560253]
[1730568062421,1.72624148,2492.6,2492.5,1.53560253]
[1730568062627,5.73824148,2492.6,2492.5,1.5356307]
[1730568062821,5.73824148,2492.6,2492.5,1.41015732]
[1730568063028,5.73824148,2492.6,2492.5,2.66488124]
[1730568063622,5.45734148,2492.6,2492.5,2.66488124]
[1730568063822,5.73824148,2492.6,2492.5,2.66488124]
[1730568064235,8.94604148,2492.6,2492.5,2.66488124]
[1730568064437,8.94604148,2492.6,2492.5,1.66109417]
[1730568064634,8.94604148,2492.6,2492.5,2.66493021]
[1730568064838,3.2078,2492.6,2492.5,1.66109417]
[1730568065133,3.2078,2492.6,2492.5,1.91202804]
[1730568065439,4.65314148,2492.6,2492.5,1.91202804]
[1730568065632,4.65314148,2492.6,2492.5,0.2809]
[1730568065938,4.65314148,2492.6,2492.5,1.91208397]
[1730568066138,4.93404148,2492.6,2492.5,1.91208397]
[1730568066441,4.65314148,2492.6,2492.5,0.90827845]
[1730568066639,4.65314148,2492.6,2492.5,1.91210688]
[1730568066936,4.93404148,2492.6,2492.5,0.90827845]
[1730568067140,4.93404148,2492.6,2492.5,1.23452365]
[1730568067339,4.93404148,2492.6,2492.5,4.11971251]
[1730568067642,4.65314148,2492.6,2492.5,3.49314998]
[1730568067839,1.44534148,2492.6,2492.5,3.49314998]
[1730568068432,4.65314148,2492.6,2492.5,3.49314998]
[1730568068830,4.65314148,2492.6,2492.5,4.76621251]
[1730568069031,4.65314148,2492.6,2492.5,1.88020773]
[1730568069341,4.65314148,2492.6,2492.5,4.13958606]
[1730568071843,1.44534148,2492.6,2492.5,4.13958606]
[1730568072043,4.65314148,2492.6,2492.5,4.13958606]
[1730568072548,4.65314148,2492.6,2492.5,1.25364023]
[1730568072845,4.65314148,2492.6,2492.5,4.13960967]
[1730568073042,4.65314148,2492.6,2492.5,3.81336944]
[1730568073340,4.65314148,2492.6,2492.5,4.13960988]
[1730568073742,4.93404148,2492.6,2492.5,3.29234653]
[1730568074137,4.93404148,2492.6,2492.5,3.16686944]
[1730568074443,4.93404148,2492.6,2492.5,1.91210012]
[1730568074644,1.72624148,2492.6,2492.5,0.90828466]
[1730568074836,4.93404148,2492.6,2492.5,0.90828466]
[1730568075346,4.93404148,2492.6,2492.5,0.62738466]
[1730568075739,4.93404148,2492.6,2492.5,0.90829466]
[1730568076344,4.93404148,2492.6,2492.5,0.90832107]
[1730568076547,8.94604148,2492.6,2492.5,0.90832107]
[1730568077246,0.28091,2492.5,2492.4,0.28091]
[1730568077448,2.36285148,2492.5,2492.4,0.90833149]
[1730568079943,2.36285148,2492.5,2492.4,0.90832921]
[1730568080759,2.36285148,2492.5,2492.4,0.62741921]
[1730568081045,2.36285148,2492.5,2492.3,0.28093]
[1730568081046,0.28092,2492.4,2492.3,0.28093]
[1730568081240,1.56872,2492.4,2492.3,0.90836975]
[1730568082148,1.2878,2492.4,2492.3,0.90836975]
[1730568082348,4.4956,2492.4,2492.3,3.29265946]
[1730568082847,4.4956,2492.4,2492.3,2.03777006]
[1730568083149,4.4956,2492.4,2492.3,1.91228127]
[1730568083939,4.77652,2492.4,2492.3,0.90836975]
[1730568084140,4.77652,2492.4,2492.3,1.912318]
[1730568084352,4.4956,2492.4,2492.3,1.912318]
[1730568084852,4.4956,2492.4,2492.3,1.28485871]
[1730568085043,4.4956,2492.4,2492.3,1.91231415]
[1730568085245,4.77652,2492.4,2492.3,1.91231415]
[1730568086255,4.4956,2492.4,2492.3,1.91231415]
[1730568086949,4.77652,2492.4,2492.3,1.91231415]
[1730568087255,1.56872,2492.4,2492.3,1.91231415]
[1730568087451,4.77652,2492.4,2492.3,1.91231831]
[1730568087645,4.4956,2492.4,2492.3,1.91231831]
[1730568088952,1.2878,2492.4,2492.3,1.91231831]
[1730568089343,4.4956,2492.4,2492.3,1.91231831]
[1730568089548,4.4956,2492.4,2492.3,0.90838704]
[1730568091256,1.2878,2492.4,2492.3,0.90838704]
[1730568091446,3.8328,2492.4,2492.3,0.90838704]
[1730568091652,3.2078,2492.4,2492.3,0.90838704]
[1730568096154,3.2078,2492.4,2492.0,3.40905148]
[1730568096155,2.36285148,2492.5,2492.4,0.28092]
[1730568096459,5.57065148,2492.5,2492.4,0.28092]
[1730568096954,2.36285148,2492.5,2492.4,0.28092]
[1730568097349,5.57065148,2492.5,2492.4,0.90835697]
[1730568098357,5.57065148,2492.5,2492.4,0.62743697]
[1730568098663,5.57065148,2492.5,2492.4,0.90835697]
[1730568099150,5.57065148,2492.5,2492.4,0.28092]
[1730568099349,5.57065148,2492.5,2492.4,0.90836857]
[1730568100762,5.28974148,2492.5,2492.4,0.90836857]
[1730568101351,5.28974148,2492.5,2492.4,1.9122618]
[1730568101553,5.28974148,2492.5,2492.4,0.90836857]
[1730568101853,5.28974148,2492.5,2492.4,1.91230341]
[1730568102054,5.28974148,2492.5,2492.4,0.90836857]
[1730568102250,5.57065148,2492.5,2492.4,1.91225541]
[1730568103149,2.36285148,2492.5,2492.4,1.91225541]
[1730568103346,5.57065148,2492.5,2492.4,1.91225541]
[1730568103546,5.57065148,2492.5,2492.4,2.52195541]
[1730568104063,5.28974148,2492.5,2492.4,2.52195541]
[1730568104360,4.65314148,2492.5,2492.4,2.64744098]
[1730568106370,3.2078,2492.5,2492.4,8.1123066]
[1730568106663,3.2078,2492.5,2492.4,8.36325856]
[1730568106852,3.2078,2492.5,2492.4,8.98906918]
[1730568107053,3.2078,2492.5,2492.4,5.10339224]
[1730568107249,3.2078,2492.5,2492.4,7.15669038]
[1730568107455,3.2078,2492.5,2492.4,8.98589405]
[1730568107955,3.2078,2492.5,2492.4,8.70497405]
[1730568108155,3.2078,2492.5,2492.4,8.98589405]
[1730568109757,3.1078,2492.5,2492.4,8.35947791]
[1730568110159,1.44534148,2492.6,2492.5,0.28091]
[1730568110361,4.65314148,2492.6,2492.5,3.20591793]
[1730568110556,4.65314148,2492.6,2492.4,0.6097]
[1730568110557,0.28091,2492.5,2492.4,0.28091]
[1730568110754,3.02405148,2492.5,2492.4,0.28091]
[1730568110958,2.74314148,2492.5,2492.4,3.27053756]
[1730568111157,2.74314148,2492.5,2492.4,3.47130728]
[1730568111467,2.24314148,2492.5,2492.4,3.47130728]
[1730568111668,1.74314148,2492.5,2492.4,3.47130728]
[1730568111866,1.74314148,2492.5,2492.4,1.02903178]
[1730568112161,4.65314148,2492.5,2492.4,1.02903178]
[1730568112358,4.15314148,2492.5,2492.4,1.02903178]
[1730568112557,3.97644148,2492.5,2492.4,1.02903178]
[1730568112758,3.97644148,2492.5,2492.4,1.02903059]
[1730568112958,1.44534148,2492.5,2492.4,1.02903059]
[1730568113253,4.65314148,2492.5,2492.4,1.02903059]
[1730568113457,4.65314148,2492.5,2492.4,0.9035507]
[1730568114058,1.44534148,2492.5,2492.4,0.9035507]
[1730568114361,4.65314148,2492.5,2492.4,0.9035507]
[1730568114669,4.65314148,2492.5,2492.4,0.90357185]
[1730568116860,4.93405148,2492.5,2492.4,0.90357185]
[1730568117055,4.93405148,2492.5,2492.4,0.28091]
[1730568117258,1.72625148,2492.5,2492.4,0.28091]
[1730568117467,4.93405148,2492.5,2492.4,0.28091]
[1730568117868,4.65314148,2492.5,2492.4,0.28091]
[1730568118761,4.93405148,2492.5,2492.4,0.28091]
[1730568118960,4.93405148,2492.5,2492.4,0.90026659]
[1730568119261,4.65314148,2492.5,2492.4,0.90026659]
[1730568119464,4.93405148,2492.5,2492.4,0.90026659]
[1730568119958,4.93405148,2492.5,2492.4,2.2121205]
[1730568120359,4.93405148,2492.5,2492.4,3.44413587]
[1730568120554,4.93405148,2492.5,2492.4,1.73043814]
[1730568120555,8.94605148,2492.5,2492.4,1.73043814]
[1730568120757,8.94605148,2492.5,2492.4,0.61935659]
[1730568126960,0.28093,2492.3,2492.2,0.28094]
[1730568127167,1.72627148,2492.3,2492.2,1.9989774]
[1730568127366,4.93407148,2492.3,2492.2,1.9989774]
[1730568127577,5.57217148,2492.3,2492.2,1.9989774]
[1730568127769,2.36437148,2492.3,2492.2,1.9989774]
[1730568127970,5.57217148,2492.3,2492.2,1.9989774]
[1730568128167,5.57217148,2492.3,2492.2,1.99897791]
[1730568128678,5.57217148,2492.3,2492.2,1.99889695]
[1730568128979,5.29124148,2492.3,2492.2,1.99889695]
[1730568129474,4.65314148,2492.3,2492.2,1.99889695]
[1730568129675,4.93407148,2492.3,2492.2,1.99889695]
[1730568130068,4.65314148,2492.3,2492.2,1.99889695]
[1730568131075,4.65314148,2492.3,2492.2,1.01892232]
[1730568131270,1.44534148,2492.3,2492.2,1.01892232]
[1730568131472,4.65314148,2492.3,2492.2,1.01892232]
[1730568131982,1.44534148,2492.3,2492.2,0.40643653]
[1730568132281,4.65314148,2492.3,2492.2,1.01549236]
[1730568132874,1.44534148,2492.3,2492.2,1.01549236]
[1730568133080,4.65314148,2492.3,2492.2,1.01547973]
[1730568133774,1.44534148,2492.3,2492.2,1.01547973]
[1730568133975,4.65314148,2492.3,2492.2,1.98993105]
[1730568134979,3.2078,2492.3,2492.2,8.09638935]
[1730568135176,2.1944,2492.3,2492.2,8.34735293]
[1730568135573,2.1944,2492.3,2492.2,7.37272179]
[1730568135772,2.1944,2492.3,2492.2,8.34703079]
[1730568136978,1.1984,2492.3,2492.2,9.79237227]
[1730568137181,1.72622148,2492.8,2492.4,0.7023]
[1730568137481,1.72622148,2492.8,2492.7,0.28089]
[1730568137676,1.72622148,2492.8,2492.7,1.01532965]
[1730568137677,1.44534148,2492.8,2492.7,1.01532965]
[1730568137975,1.44534148,2492.8,2492.7,0.88983312]
[1730568138570,1.44534148,2492.8,2492.7,1.01530363]
[1730568139078,1.44534148,2492.8,2492.7,0.88983312]
[1730568139274,1.44534148,2492.8,2492.7,0.28089]
[1730568139473,1.44534148,2492.8,2492.7,1.01519021]
[1730568139684,1.44534148,2492.8,2492.7,0.28089]
[1730568139977,1.44534148,2492.8,2492.7,1.01516346]
[1730568141782,1.72621148,2492.8,2492.7,1.01516346]
[1730568142376,1.72621148,2492.8,2492.7,0.88969328]
[1730568142579,1.72621148,2492.8,2492.7,1.01516609]
[1730568142776,1.72621148,2492.8,2492.7,0.88969328]
[1730568142977,1.44534148,2492.8,2492.7,0.88969328]
[1730568143180,1.44534148,2492.8,2492.7,1.01516626]
[1730568143380,1.44534148,2492.8,2492.7,0.88969328]
[1730568143581,1.72621148,2492.8,2492.7,0.88969328]
[1730568144987,1.44534148,2492.8,2492.7,0.88969328]
[1730568145180,1.44534148,2492.8,2492.7,0.28089]
[1730568145383,4.29287,2492.8,2492.7,0.60529123]
[1730568145582,4.29287,2492.8,2492.7,0.28089]
[1730568145878,4.012,2492.8,2492.7,0.28089]
[1730568146079,4.29287,2492.8,2492.7,0.28089]
[1730568147081,7.50067,2492.8,2492.7,0.28089]
[1730568147386,4.29287,2492.8,2492.7,0.28089]
[1730568147587,7.2198,2492.8,2492.7,0.28089]
[1730568147975,7.50067,2492.8,2492.7,0.28089]
[1730568148983,7.2198,2492.8,2492.7,0.28089]
[1730568149192,7.50067,2492.8,2492.7,0.28089]
[1730568152481,4.29287,2492.8,2492.7,0.28089]
[1730568152685,7.50067,2492.8,2492.7,0.28089]
[1730568153892,4.29287,2492.8,2492.7,0.28089]
[1730568154288,7.50067,2492.8,2492.7,0.28089]
[1730568154887,7.2198,2492.8,2492.7,0.28089]
[1730568155093,7.50067,2492.8,2492.7,0.28089]
[1730568155778,7.50067,2492.8,2492.4,0.28091]
[1730568155779,0.2809,2492.6,2492.4,0.28091]
[1730568155978,3.59285296,2492.9,2492.2,0.614]
[1730568155979,5.86974148,2492.5,2492.2,0.614]
[1730568156188,4.4244,2492.5,2492.4,0.28092]
[1730568157282,4.4244,2492.5,2492.4,0.87954198]
[1730568157685,5.86974148,2492.5,2492.4,0.87954198]
[1730568157895,5.86974148,2492.5,2492.4,0.28092]
[1730568158099,5.86974148,2492.5,2492.4,0.87953263]
[1730568158387,3.8206,2492.5,2492.4,0.28092]
[1730568158597,0.6128,2492.5,2492.4,1.00500424]
[1730568162300,0.6128,2492.5,2492.4,0.40640284]
[1730568162489,0.6128,2492.5,2492.4,0.87953835]
[1730568162789,0.6128,2492.5,2492.4,1.60361882]
[1730568163592,0.1128,2492.5,2492.4,1.60361882]
[1730568164001,2.10444148,2492.6,2492.4,1.60361882]
[1730568164002,1.71924148,2492.6,2492.5,0.28091]
[1730568164300,1.27274148,2492.6,2492.5,1.00499047]
[1730568164495,1.27274148,2492.6,2492.5,1.52150923]
[1730568164696,0.82624148,2492.6,2492.5,1.52150923]
[1730568165895,0.32734148,2492.6,2492.5,1.52151713]
[1730568167299,0.32734148,2492.6,2492.5,1.64699536]
[1730568167697,0.32734148,2492.6,2492.5,1.52151713]
[1730568168394,0.32734148,2492.6,2492.5,1.0483892]
[1730568168601,0.32734148,2492.6,2492.5,1.64369088]
[1730568169505,0.32734148,2492.6,2492.5,1.64371053]
[1730568169797,0.32734148,2492.6,2492.5,0.92291]
[1730568170199,0.32734148,2492.6,2492.5,1.51826484]
[1730568170405,0.32734148,2492.6,2492.5,1.64374758]
[1730568170814,0.32734148,2492.6,2492.5,1.51826484]
[1730568171212,0.32734148,2492.6,2492.5,1.64374807]
[1730568171517,0.32734148,2492.6,2492.5,1.64374767]
[1730568172017,0.32734148,2492.6,2492.5,1.64382347]
[1730568172314,0.32734148,2492.6,2492.5,1.64382092]
[1730568172715,3.53514148,2492.6,2492.5,1.64382092]
[1730568173016,0.32734148,2492.6,2492.5,1.64382092]
[1730568173211,3.53514148,2492.6,2492.5,0.92291]
[1730568173414,3.53514148,2492.6,2492.5,1.64385108]
[1730568174317,3.81604148,2492.6,2492.5,1.64385108]
[1730568174516,3.81604148,2492.6,2492.5,0.72094108]
[1730568174816,0.28092,2492.5,2492.3,0.70272]
[1730568175113,1.72626148,2492.4,2492.3,0.28092]
[1730568175317,1.72626148,2492.4,2492.3,1.00199737]
[1730568175619,1.72626148,2492.4,2492.3,0.28092]
[1730568175818,1.72626148,2492.4,2492.3,0.99862128]
[1730568176007,1.72626148,2492.4,2492.3,0.28092]
[1730568176206,1.44534148,2492.4,2492.3,0.8731266]
[1730568176416,1.44534148,2492.4,2492.3,0.99862018]
[1730568176610,1.44534148,2492.4,2492.3,0.40641266]
[1730568176916,1.44534148,2492.4,2492.3,0.9986124]
[1730568177711,1.72626148,2492.4,2492.3,0.9986124]
[1730568177912,4.93406148,2492.4,2492.3,0.9986124]
[1730568178818,4.93406148,2492.4,2492.3,0.28092]
[1730568179112,5.108602,2492.4,2492.3,0.28092]
[1730568181320,1.900802,2492.4,2492.3,0.28092]
[1730568181819,4.65314148,2492.4,2492.3,0.28092]
[1730568182420,4.93406148,2492.4,2492.3,0.28092]
[1730568182617,4.65314148,2492.4,2492.3,0.28092]
[1730568183921,1.44534148,2492.4,2492.3,0.28092]
[1730568184111,4.65314148,2492.4,2492.3,0.28092]
[1730568184314,4.65314148,2492.4,2492.2,0.4218]
[1730568184921,4.65314148,2492.4,2492.0,0.6195]
[1730568184922,1.1908,2492.3,2492.0,0.6195]
[1730568185116,1.72629148,2492.2,2492.1,0.12550204]
[1730568185322,1.72629148,2492.2,2492.1,0.7141833]
[1730568185526,1.72629148,2492.2,2492.1,0.99514777]
[1730568185722,1.72629148,2492.2,2492.1,0.40645204]
[1730568186027,2.16804148,2492.2,2491.9,0.72316]
[1730568186218,0.94574148,2492.0,2491.9,0.72316]
[1730568186427,0.94574148,2492.0,2491.9,0.84867066]
[1730568186619,0.94574148,2492.0,2491.9,1.43731046]
[1730568188123,0.94574148,2492.0,2491.9,0.84867066]
[1730568189016,0.94574148,2492.0,2491.4,5.70467822]
[1730568189216,3.9305,2492.2,2491.4,5.70467822]